Cogmind - Beta 15 @@@ ROGUE MODE // 2025.05.19 @ 22:44:29 Player: PieTheDye Result: Destroyed by GI-354(R) with Subdweller Machine Gun Performance ------------- Evolutions (0) 0 Regions Visited (2) 400 Robots Destroyed (12) 60 Value Destroyed (317) 317 Prototype IDs (2) 40 Alien Tech Used (0) 0 Bonus (0) 0 TOTAL SCORE: 817 Bonus ------- None Cogmind --------- Core Integrity 0/250 Matter 244/300 Energy 100/100 System Corruption 1% Temperature Cool (0) Movement Core (1450) Ox28 Location -10/Subcaves Parts ------- > --- POWER (1) -------- (None) > --- PROPULSION (2) --- (None) > --- UTILITY (2) ------ Huge Storage Unit Structural Scanner > --- WEAPON (2) ------- Shotgun Shotgun > --- INVENTORY (25) --- Light Nuclear Core Light Treads Light Treads Aluminum Leg Aluminum Leg Compact Wheel Sensor Array Signal Interpreter Propulsion Shielding Scrap Shield Beam Cannon Beam Cannon Particle Cannon Particle Cannon Particle Cannon Particle Cannon Assault Rifle Shotgun Shotgun Grenade Launcher Welding Torch Peak State ------------ > --- POWER ------------ Light Ion Engine > --- PROPULSION ------- Wheel Compact Wheel > --- UTILITY ---------- Huge Storage Unit Structural Scanner > --- WEAPON ----------- Shotgun Shotgun > --- INVENTORY -------- Light Ion Engine Light Nuclear Core Light Treads Light Treads Light Treads Light Treads Aluminum Leg Aluminum Leg Wheel Wheel Small Storage Unit Propulsion Shielding Beam Cannon Beam Cannon Particle Cannon Particle Cannon Particle Cannon Particle Cannon Assault Rifle Shotgun Shotgun Grenade Launcher Welding Torch [Rating: 12] Favorites ----------- Power Light Ion Engine Engine Light Ion Engine Propulsion Light Treads Treads Light Treads Wheel Compact Wheel Utility Structural Scanner Device Structural Scanner Storage Huge Storage Unit Weapon Medium Laser Energy Gun Medium Laser Energy Cannon Particle Cannon Ballistic Gun Shotgun Build | -11 -10 -10 ------- Run | Yrd Mat Sub Slots Evolved . | . . . Power . | . . . Propulsion . | . . . Utility . | . . . Weapon . | . . . Parts Attached 20 | 6 11 3 Power 4 | 1 2 1 Engine 4 | 1 2 1 Core . | . . . Reactor . | . . . Propulsion 6 | 2 2 2 Treads 2 | 2 . . Leg . | . . . Wheel 4 | . 2 2 Hover . | . . . Flight . | . . . Utility 3 | 1 2 . Device 1 | . 1 . Storage 2 | 1 1 . Processor . | . . . Hackware . | . . . Protection . | . . . Artifact . | . . . Weapon 7 | 2 5 . Energy Gun 3 | 2 1 . Energy Cannon 1 | . 1 . Ballistic Gun 3 | . 3 . Ballistic Cannon . | . . . Launcher . | . . . Special Weapon . | . . . Impact Weapon . | . . . Slashing Weapon . | . . . Piercing Weapon . | . . . Special Melee Weapon . | . . . Unidentified Prototypes . | . . . Parts Lost 10 | . 4 6 Power 4 | . 2 2 Propulsion 4 | . . 4 Utility . | . . . Weapon 2 | . 2 . Highest Loss Streak 4 | . 2 4 To Critical Strikes 1 | . . 1 Average Backups 13 | 4 12 22 Power 1 | . 1 1 Propulsion 6 | 3 6 5 Utility 1 | . 1 4 Weapon 3 | . 2 10 Tool/Special . | . . . Unused Backups 19 | . . 19 Power 1 | . . 1 Propulsion 5 | . . 5 Utility 4 | . . 4 Weapon 8 | . . 8 Tool/Special 1 | . . 1 Average Slot Usage (%) 91 | . 89 100 Engine 13 | . 13 14 Treads 9 | . 11 . Wheel 18 | . 16 28 Device 10 | . 9 14 Storage 14 | . 14 14 Energy Gun 16 | . 19 . Ballistic Gun 7 | . 3 28 Peak Build Rating 12 | 6 12 12 Average Rating 8 | 5 7 11 On Entrance 6 | . 6 12 Naked Turns . | . . . Heaviest Build 91 | 12 91 90 Greatest Support 40 | 40 40 26 Greatest Overweight (x) 3 | . 3 3 Average Overweight (x) 1 | . 2 3 Largest Inventory Capacity 25 | 8 25 25 Average Capacity 17 | 7 18 25 Most Carried 25 | 8 25 25 Average Carried 13 | 4 12 23 Final Capacity 25 | 8 25 25 Final Carried 24 | 8 24 22 Class Distribution -------------------- 100% | Mutant Dominant Class ---------------- Mutant | -10/Materials Mutant | -10/Subcaves Resources | -11 -10 -10 ----------- Run | Yrd Mat Sub Matter Collected 320 | 260 60 . Remotely . | . . . Salvage Created 459 | 113 346 . Parts 22 | 3 19 . Haulers Intercepted . | . . . Recyclers Shooed 1 | . 1 . Parts Field Recycled . | . . . Retrieved Matter . | . . . Parts Self-Destructed 5 | . . 5 Prevented . | . . . Kills | -11 -10 -10 ------- Run | Yrd Mat Sub Combat Hostiles Destroyed 10 | . 10 . Guns 10 | . 10 . Classes Destroyed 4 | 2 2 . Tunneler 1 | 1 . . Recycler 1 | 1 . . Swarmer 3 | . 3 . Grunt 7 | . 7 . Best Kill Streak 3 | 1 3 . Combat Bots Only 3 | . 3 . Max Kills in Single Turn 1 | 1 1 . Gunslinging . | . . . Exploded . | . . . Melee . | . . . Uniques/NPCs Destroyed . | . . . Combat | -11 -10 -10 -------- Run | Yrd Mat Sub Hostile Shots Fired 97 | . 68 29 Missed 12 | . 9 3 Hits 85 | . 59 26 Projectile 85 | . 59 26 Critical Strikes 5 | . 4 1 Damage Taken 1243 | 24 690 529 Core 272 | . 131 141 Absorbed by Shields . | . . . Core Remaining (%) 100 | 100 . . Volleys Fired 64 | 5 57 2 Largest 2 | 2 2 2 Hottest 90 | 90 90 46 Shots Fired 101 | 10 87 4 Gun 100 | 10 86 4 Cannon 1 | . 1 . Launcher . | . . . Special . | . . . Kinetic 4 | . . 4 Thermal 82 | 5 77 . Explosive . | . . . Electromagnetic 15 | 5 10 . Robot Hit Streak 6 | 3 6 2 Robot Miss Streak 2 | 1 2 1 Penetration Max . | . . . Secondary Targets . | . . . Shots Hit Robots 69 | 6 59 4 Core Hits 26 | 3 22 1 Critical Kills . | . . . Critical Parts Destroyed . | . . . Critical Strikes 5 | . 5 . Burn 5 | . 5 . Melee Attacks . | . . . Impact . | . . . Slashing . | . . . Piercing . | . . . Sneak Attacks . | . . . Combat Hostiles . | . . . Follow-up Attacks . | . . . Damage Inflicted 950 | 154 744 52 Guns 879 | 83 744 52 Cannons . | . . . Explosions 71 | 71 . . Melee . | . . . Ramming . | . . . Kinetic 52 | . . 52 Thermal 738 | 96 642 . Explosive . | . . . Electromagnetic 160 | 58 102 . Impact . | . . . Slashing . | . . . Piercing . | . . . Highest Corruption 1 | . 1 1 Average Corruption 1 | . 1 1 Corruption Purged . | . . . Corruption Blocked . | . . . Effects 2 | . 1 1 Message Errors 1 | . 1 . Data Loss (minor) 1 | . . 1 Overload Shots . | . . . Overflow Damage . | . . . Projectiles . | . . . Explosions . | . . . Melee . | . . . Knockbacks . | . . . Impact . | . . . Kinetic . | . . . Secondary . | . . . Self-Inflicted Damage 24 | 24 . . Shots 1 | 1 . . Rammed . | . . . Targets Rammed . | . . . Kicked . | . . . Crushed . | . . . Highest Temperature 429 | 90 429 . Average Temperature 142 | 44 153 . Received Heat Transfer 462 | . 420 42 Effects 3 | . 3 . Shutdowns 3 | . 3 . Siege Activations . | . . . Martial Activations . | . . . Shielding Activations . | . . . Robots Disrupted . | . . . Combat Hostiles . | . . . Robots Corrupted . | . . . Combat Hostiles . | . . . Parts Fried 1 | 1 . . Impact Corruptions . | . . . Robots Melted . | . . . Combat Hostiles . | . . . Parts Melted 4 | . 4 . Heat Transferred 2349 | 174 2175 . Parts Sabotaged . | . . . Parts Stolen . | . . . Parts Stripped . | . . . Power Chain Reactions 2 | 2 . . Alert | -11 -10 -10 ------- Run | Yrd Mat Sub Maximum Alert Level . | . . . Low Security (%) 100 | 100 100 . Level 1 . | . . . Level 2 . | . . . Level 3 . | . . . Level 4 . | . . . Level 5 . | . . . High Security . | . . . Max Security . | . . . Peak Influence 106 | 5 106 . Initial . | . . . Average 39 | . 46 . Influence Increases 374 | 10 364 . Destroy 0b10 Robot/C 200 | . 200 . Destroy 0b10 Robot/NC 10 | 10 . . Destroy Leader 30 | . 30 . Successful Hack 28 | . 28 . Disable Machine 15 | . 15 . Destroy Structure 1 | . 1 . Lose Combat Pursuer 90 | . 90 . Influence Decreases 374 | 10 364 . Time Decay 334 | 10 324 . Lost Part 40 | . 40 . Squads Dispatched 1 | . 1 . Investigation 1 | . 1 . Extermination . | . . . Reinforcement . | . . . Assault . | . . . Garrison . | . . . Intercept . | . . . Searches Triggered . | . . . Construction Impeded . | . . . Haulers Reinforced . | . . . Active Scanning Responses . | . . . Cargo Convoy Interrupts . | . . . Stealth | -11 -10 -10 --------- Run | Yrd Mat Sub Distress Signals 1 | . 1 . Communications Jammed . | . . . Distress Signals . | . . . Times Spotted 30 | . 22 8 Peak Tracking Total 7 | . 5 7 Tactical Retreats 7 | . 5 2 Traps | -11 -10 -10 ------- Run | Yrd Mat Sub Traps Triggered . | . . . Indirectly . | . . . Trap Hack Attempts . | . . . Triggered . | . . . Disarmed . | . . . Reprogrammed . | . . . Reused . | . . . Traps Extracted . | . . . Installed . | . . . Triggered . | . . . Machines | -11 -10 -10 ---------- Run | Yrd Mat Sub Machines Disabled 1 | . 1 . Max in Single Turn 1 | . 1 . Machines Repaired . | . . . Machines Dismantled . | . . . Machines Sabotaged . | . . . Overloaded Fab Kills . | . . . Hacking | -11 -10 -10 --------- Run | Yrd Mat Sub Machines Accessed 7 | . 7 . Terminals 5 | . 5 . Fabricators . | . . . Repair Stations . | . . . Recycling Units 2 | . 2 . Scanalyzers . | . . . Garrison Access . | . . . Total Hacks 22 | . 22 . Successful 11 | . 11 . Failed 11 | . 11 . Catastrophic 1 | . 1 . Database Lockouts . | . . . Manual 14 | . 14 . Terminals 15 | . 15 . Fabricators . | . . . Repair Stations . | . . . Recycling Units 7 | . 7 . Scanalyzers . | . . . Garrison Access . | . . . Terminal Hacks 5 | . 5 . Robot Analysis 1 | . 1 . Prototype ID Bank 1 | . 1 . Alert Level 1 | . 1 . Hauler Manifests 1 | . 1 . Zone Layout 1 | . 1 . Fabricator Hacks . | . . . Repair Station Hacks . | . . . Recycling Unit Hacks 2 | . 2 . Report Inventory 2 | . 2 . Scanalyzer . | . . . Garrison Access Hacks . | . . . Unauthorized Hacks 4 | . 4 . Terminals 4 | . 4 . Botnet 4 | . 4 . Fabricators . | . . . Repair Stations . | . . . Recycling Units . | . . . Scanalyzers . | . . . Garrison Access . | . . . Data Cores Recovered . | . . . Used . | . . . Hacking Detections 7 | . 7 . Full Trace Events 3 | . 3 . Feedback Events 1 | . 1 . Corruption 1 | . 1 . Feedback Blocked . | . . . Robot Schematics Acquired . | . . . Robots Built . | . . . Authchips . | . . . Time . | . . . Total Robot Build Rating . | . . . Part Schematics Acquired . | . . . Parts Built . | . . . Authchips . | . . . Time . | . . . Total Part Build Rating . | . . . Parts Repaired . | . . . Time . | . . . Parts Recycled . | . . . Recycled Matter . | . . . Retrieved Matter . | . . . Retrieved Components . | . . . Parts Scanalyzed . | . . . Part Schematics Acquired . | . . . Parts Damaged . | . . . Bothacking | -11 -10 -10 ------------ Run | Yrd Mat Sub Used RIF Installer . | . . . Robots Hacked . | . . . Non-combat . | . . . Combat . | . . . Robot Hacks Applied . | . . . Relay Couplers Released . | . . . Fabnet Peak Effective % . | . . . Robots Rewired . | . . . Allies Hacked . | . . . Hacks Repelled . | . . . Allies | -11 -10 -10 -------- Run | Yrd Mat Sub Total Allies . | . . . Largest Group . | . . . Highest-Rated Group . | . . . Highest-Rated Ally . | . . . Total Orders . | . . . Ally Attacks . | . . . Total Damage . | . . . Kills . | . . . Allies Corrupted . | . . . Allies Melted . | . . . Intel | -11 -10 -10 ------- Run | Yrd Mat Sub Active Infowar (turns) 736 | . 552 184 Structural 736 | . 552 184 Robot Analysis Total 1 | . 1 . Derelict Logs Recovered . | . . . Drone Launches . | . . . Drone Recoveries . | . . . Exploration | -11 -10 -10 ------------- Run | Yrd Mat Sub Turns Passed 1167 | 151 832 184 Spaces Moved 627 | 76 425 126 Core 2 | 2 . . Treads 213 | 74 139 . Legs . | . . . Wheels 412 | . 286 126 Hover . | . . . Flight . | . . . Fastest Speed 50 | 50 135 135 Average Speed 143 | 157 143 135 Slowest Speed 160 | 160 160 135 Overloaded Moves . | . . . Propulsion Burnouts . | . . . Robots Hopped . | . . . Potential Cave-ins . | . . . Cave-ins Triggered . | . . . Exploration Rate (%) 29 | 5 67 15 Regions Visited 2 Branch Regions 1 Pre-discovered Areas 1 | . . 1 Known Exits Taken . | . . . Unknown Exits Taken 2 | 1 1 . Scrap Searched . | . . . Spaces Dug . | . . . Terrain Destroyed 4 | 4 . . Melee . | . . . Projectile . | . . . AOE 4 | 4 . . Terrain Rammed . | . . . Walls Destroyed . | . . . Machines Disabled . | . . . Actions | -11 -10 -10 --------- Run | Yrd Mat Sub Total 791 | 95 560 136 Wait 46 | 1 42 3 Move 625 | 75 424 126 Hop . | . . . Pick Up 31 | 8 22 1 Fast Attach 8 | 6 2 . Attach 7 | . 4 3 Detach . | . . . Swap 5 | . 5 . Drop 5 | . 4 1 Fire 64 | 5 57 2 Melee . | . . . Ram . | . . . Kick . | . . . Crush . | . . . Escape Stasis . | . . . Rewire . | . . . Trap . | . . . Miscellaneous . | . . . Route ------- -11/Scrapyard -10/Materials (discovered 4 exits: [*Mat x2] / [*Min] / [*Sub]) -10/Subcaves History --------- Turn | Location | Event 14 | -11/Scrapyard | Discovered new exit (range 15) 152 | -11/Scrapyard | Entered Materials 302 | -10/Materials | Build established: Mutant 550 | -10/Materials | Discovered new exit (range 3) 679 | -10/Materials | Core integrity fell below 50% 789 | -10/Materials | Discovered new exit (range 14) 914 | -10/Materials | Discovered new exit (range 8) 970 | -10/Materials | Discovered new exit (range 8) 984 | -10/Materials | Entered Subcaves 985 | -10/Subcaves | Approached by a straggling Scientist 1053 | -10/Subcaves | Ambushed by swarm of Subdwellers 1091 | -10/Subcaves | Learned location of Zion (-7) 1091 | -10/Subcaves | Met a Zionite searching for "candidates" 1137 | -10/Subcaves | A swath of the cavern ceiling suddenly collapsed 1165 | -10/Subcaves | Core integrity fell below 20% 1168 | -10/Subcaves | Destroyed by GI-354(R) with Subdweller Machine Gun Last Messages --------------- 01015_ HV Slug penetrates Twisted Machinery. 3D-1L2(c): "I think it's somewhere northwest of here" 01051_ P4-YP9(z): "She is not going to be happy we haven't found any suitable candidates yet." A mess of Twisted Machinery falls from the cavern ceiling. RD-XK7(R) comes tumbling into view. 01057_ KD-PK3(R) emerges from the Twisted Machinery. 01058_ DS-J0E(R) emerges from the Twisted Machinery. 01066_ Wheel destroyed. 01070_ System corrupted: Component data lost. 01091_ P4-YP9(z): "Hey you! It's really dangerous down here, I feel that you could die at any moment. For your health and safety might I suggest a trip to Zion?" World map updated: -7/Zion. 01136_ Lgt. Ion Engine destroyed. A swath of the cavern ceiling suddenly collapses. 01160_ Lgt. Ion Engine destroyed. 01162_ Wheel destroyed. 01166_ Critical hit (Destroy). 01166_ Com. Wheel destroyed. Map ----- +----------------------------------------------------+ | ?????????????????????????????????????????????????? | | ?????????????????????????????????????????????????? | | ?????????????????????????????????????????????????? | | ?????????????????????????????????????????????????? | | ?????????????????????????????????????????????????? | | ?????????????????????????????????????????????????? | | ?????????????????????????????????????????????????? | | ?????????????????????????????????????????????????? | | ?????????????????????????????????????????????????? | | ?????????????????????????????????????????????????? | | ?????????????????????????????????????????????????? | | ?????????????????????????????????????????????????? | | ?????????????????????????????????????????????????? | | ?????????????? # ????????????????????????????????? | | ??????????????## ???????????????????????????????? | | ??????????????# #"???????????????????????????????? | | ???????????????#""???????????????????????????????? | | ??????????????#"""???????????????????? ??????????? | | ??????????????##""##?????????????????? ### ?????? | | ??????????????##""##??????????????????? ## ?????? | | ???????????####""#""#??????????????????? # #"????? | | ???????????####""" ##########??????????? """???? | | ???????????##"#"##" ##########??????????? """???? | | ?????????????#"#""""#;R;#;;###??????????? # ""#??? | | ?????????????##""#"" ""RR;;;##???????????## ##### | | ?????????????###"""#""###@; #######???? ### ##### | | ?????????????###"#"#"#### #######????####"" ## | | ?????????????####""" #### ### ###???## "" | | ?????????????##"####"##### #########" | | ?????????????####""""###### ######### | | ?????????????##"###"""###### ## #### # ### | | ?????????????###"""" ######## ### | | ?????????????##""### ######### ### | | ?????????????###### ######RR ##### # ##? | | ?????????????##### #### ## ###### ### | | ???????????????### # # #### # #### ### ### | | ???????????????## ## #### ### ## | | ???????????????## ### | | ???????????????## ### # # | | ???????????????### " #### ################### | | ???????????????### # " ""######################## | | ????????????????## "" & ?######????????????????? | | ???????????????? "???????????????????????? | | ???????????????? ### " #?????????????????????? | | ????????????????? ##########?????????????????????? | | ??????????????? ##########?????????????????????? | | ???????????????####??????????????????????????????? | | ???????????????####??????????????????????????????? | | ?????????????????????????????????????????????????? | | ?????????????????????????????????????????????????? | +----------------------------------------------------+ Best States ------------- Heat Dissipation 25 Energy Generation 10 Energy Capacity 250 Matter Stores 300 Matter Capacity 300 Sight Range 16 Terrain Scan Density 10 Evasion (%) 40 Recoil Reduction 2 Item Schematics ----------------- None Robot Schematics ------------------ None Fabricated ------------ Nothing Repaired ---------- Nothing Alien Tech Used ----------------- None Achievements -------------- None Challenges ------------ None Game ------ Seed GodExperimentalDissipator Manual? 0 Play Time 00:32:48 Cumulative 27.2 hours Start 2025.05.19 @ 08:36:25 End 2025.05.19 @ 22:44:29 Sessions 1 Manual Loads 0 Difficulty Rogue Special Mode None Game No. 36 Rogue 36 Adventurer 0 Explorer 0 Win Type - Total 0 Types 0/0/0/0/0/0/0/0/0/0 Lore% 15 Gallery% 23 Achievement% 26 Wizard Run 0 Options --------- Layout 0 ASCII 0 Keyboard 0 Movement Numpad Keybinds 0 Fullscreen 1 Font 18/SmallcapsGlow Map View 76x50 Zoom Use 0% Tactical HUD 1 Map Filters NONE Filters NONE Steam 1 RUN: c0da22e3-159e-4e35-836a-b49d6231f7a1